[Event "Charlotte Spring-E 2022"]
[Site "Charlotte"]
[Date "2022.03.19"]
[Round "6.3"]
[White "Woodward, Andy"]
[Black "Chasin, Nico"]
[Result "1/2-1/2"]
[ECO "E01"]
[WhiteElo "2317"]
[BlackElo "2270"]
[Annotator "NA"]
[PlyCount "52"]
[EventDate "2022.03.16"]
[EventType "tourn"]
[EventCountry "USA"]
[SourceTitle "playchess.com"]
[Source "ChessBase"]
[SourceQuality "1"]
[TimeControl "5400+30"]

1. d4 {[%emt 0:00:02]} Nf6 {[%emt 0:10:15]} 2. c4 {[%emt 0:00:12]} e6 {[%emt 0:00:05]} 3. Nf3 {[%emt 0:00:15]} d5 {[%emt 0:00:05]} 4. g3 {[%emt 0:00:30]} Bb4+ {[%emt 0:01:14]} 5. Bd2 {[%emt 0:00:54]} Bd6 {[%emt 0:00:04]} 6. Bg2 {[%emt 0:00:15]} Nbd7 {[%emt 0:00:28]} 7. Qc2 {[%emt 0:05:09]} c6 {[%emt 0:02:04]} 8. O-O {[%emt 0:09:20]} O-O {[%emt 1:20:15]} 9. Bg5 {[%emt 0:01:55]} h6 {[%emt 0:00:00]} 10. Bxf6 {[%emt 0:00:12]} Nxf6 {[%emt 0:00:00]} 11. Nbd2 {[%emt 0:00:13]} b6 {[%emt 0:00:00]} 12. e4 {[%emt 0:00:12]} Be7 {[%emt 0:00:00]} 13. exd5 $11 {[%emt 0:22:18]} cxd5 {[%emt 0:00:00]} 14. Ne5 {[%emt 0:05:53]} Bb7 {[%emt 0:00:00]} 15. Rac1 {[%emt 0:01:56]} Rb8 {[%emt 0:00:00]} 16. cxd5 {[%emt 0:07:39]} Bxd5 {[%emt 0:00:00]} 17. Bxd5 {[%emt 0:05:05]} Qxd5 {[%emt 0:00:00]} 18. Qc4 {[%emt 0:00:37]} Rb7 {[%emt 0:00:00]} 19. Qxd5 {[%emt 0:07:33]} Nxd5 {[%emt 0:00:00]} 20. Ne4 {[%emt 0:01:46]} f6 {[%emt 0:00:00]} 21. Nc6 {[%emt 0:03:28]} Nb4 {[%emt 0:00:00]} 22. Nxb4 {[%emt 0:02:32]} Bxb4 {[%emt 0:00:00]} 23. Rc4 {[%emt 0:00:32]} Be7 {[%emt 0:00:00]} 24. Rfc1 {[%emt 0:00:13]} Rd7 {[%emt 0:00:00]} 25. Nd2 {[%emt 0:06:42]} e5 {[%emt 0:00:00]} 26. Rc7 {[%emt 0:01:19]} Rfd8 {[%emt 0:00:00]} 1/2-1/2

[Event "Charlotte Spring-E 2022"]
[Site "Charlotte"]
[Date "2022.03.19"]
[Round "6.4"]
[White "Matros, Alexander"]
[Black "Yang, Qindong"]
[Result "1/2-1/2"]
[ECO "E32"]
[WhiteElo "2357"]
[BlackElo "2084"]
[Annotator "NA"]
[PlyCount "61"]
[EventDate "2022.03.16"]
[EventType "tourn"]
[EventCountry "USA"]
[SourceTitle "playchess.com"]
[Source "ChessBase"]
[SourceQuality "1"]
[TimeControl "5400+30"]

1. d4 {[%emt 0:00:03]} Nf6 {[%emt 1:31:00]} 2. c4 {[%emt 0:00:06]} e6 {[%emt 0:00:00]} 3. Nc3 {[%emt 0:00:11]} Bb4 {[%emt 0:00:00]} 4. Qc2 {[%emt 0:00:12]} b6 {[%emt 0:01:30]} 5. e4 {[%emt 1:32:28]} c5 {[%emt 0:00:00]} 6. dxc5 {[%emt 0:00:00]} Bb7 {[%emt 0:00:00]} 7. Bd3 {[%emt 0:00:00]} bxc5 {[%emt 0:01:30]} 8. Nge2 {[%emt 0:01:30]} Nc6 {[%emt 0:00:00]} 9. O-O {[%emt 0:00:00]} d6 {[%emt 0:00:00]} 10. Bf4 {[%emt 0:00:00]} O-O 11. Rad1 {[%emt 0:00:00]} Qe7 {[%emt 0:00:00]} 12. Bg5 {[%emt 0:00:00]} h6 {[%emt 0:00:00]} 13. Bh4 Nd4 {[%emt 0:03:00]} 14. Nxd4 {[%emt 0:00:00]} cxd4 {[%emt 0:00:00]} 15. Ne2 {[%emt 0:03:30]} g5 {[%emt 0:00:00]} 16. Bg3 {[%emt 0:00:00]} e5 {[%emt 0:00:00]} 17. a3 {[%emt 0:00:00]} Bc5 {[%emt 0:00:00]} 18. b4 {[%emt 0:00:00]} Bb6 {[%emt 0:00:00]} 19. f3 {[%emt 0:00:00]} a5 {[%emt 0:00:00]} 20. Be1 {[%emt 0:00:00]} axb4 {[%emt 0:00:00]} 21. axb4 {[%emt 0:00:00]} Nh5 {[%emt 0:00:00]} 22. Bd2 {[%emt 0:00:00]} Bc6 {[%emt 0:00:00]} 23. Ra1 {[%emt 0:00:00]} Rfc8 {[%emt 0:00:00]} 24. Qb2 {[%emt 0:00:00]} Bd7 {[%emt 0:00:00]} 25. Rxa8 {[%emt 0:00:00]} Rxa8 {[%emt 0:00:00]} 26. Ra1 {[%emt 0:00:00]} Qd8 {[%emt 0:00:00]} 27. Ra3 {[%emt 0:00:00]} Be6 {[%emt 0:00:00]} 28. Qa2 {[%emt 0:00:00]} Rxa3 {[%emt 0:00:00]} 29. Qxa3 {[%emt 0:00:00]} Qc8 {[%emt 0:00:00]} 30. Qa2 {[%emt 0:00:00]} Kg7 {[%emt 0:08:30]} 31. Kf1 {[%emt 0:00:00]} 1/2-1/2